bitfinex-derivatives/quotes_SOLF0:USTF0_20260207
["timestamp","ask_amount","ask_price","bid_price","bid_amount"]
[1770451103273,10.5472,85.389,85.32,4.95053686]
[1770451103274,4.95053686,85.36,85.32,4.95053686]
[1770451103473,49.96876024,85.359,85.32,4.95053686]
[1770451104777,49.96876024,85.359,85.322,10.5553]
[1770451105675,49.96876024,85.359,85.33,15.50493686]
[1770451105983,49.96876024,85.359,85.33,10.5544]
[1770451106385,49.96876024,85.359,85.32,4.95053686]
[1770451107782,49.96876024,85.359,85.33,4.95053686]
[1770451107978,49.96876024,85.359,85.323,10.5552]
[1770451108774,49.96876024,85.359,85.32,4.95053686]
[1770451109178,49.96876024,85.359,85.33,4.95053686]
[1770451109382,49.96876024,85.359,85.32,4.95053686]
[1770451110678,49.96876024,85.359,85.33,4.95053686]
[1770451110874,49.96876024,85.379,85.281,48.03372332]
[1770451111077,49.96876024,85.369,85.32,4.95053686]
[1770451111273,49.96876024,85.369,85.34,4.95053686]
[1770451111778,49.96876024,85.369,85.33,4.95053686]
[1770451112378,49.96876024,85.369,85.34,4.95053686]
[1770451112784,49.96876024,85.389,85.337,10.5534]
[1770451112989,49.96876024,85.389,85.34,4.95053686]
[1770451113282,10.88887654,85.438,85.272,21.1232]
[1770451113283,49.96876024,85.408,85.36,4.95053686]
[1770451113586,54.9192971,85.4,85.35,52.98426018]
[1770451113774,54.9192971,85.4,85.36,4.95053686]
[1770451113775,49.96876024,85.4,85.36,4.95053686]
[1770451113979,54.9192971,85.4,85.35,52.98426018]
[1770451114176,49.96876024,85.4,85.36,4.95053686]
[1770451115380,54.9192971,85.4,85.35,4.95053686]
[1770451115781,54.9192971,85.4,85.343,52.01187099]
[1770451115984,54.9192971,85.4,85.35,4.95053686]
[1770451116486,54.9192971,85.4,85.36,4.95053686]
[1770451116884,49.96876024,85.4,85.36,4.95053686]
[1770451120377,4.95053686,85.39,85.35,15.50243686]
[1770451120579,54.9192971,85.4,85.35,15.50243686]
[1770451121485,49.96876024,85.4,85.36,4.95053686]
[1770451121787,49.96876024,85.4,85.354,10.5514]
[1770451121788,54.9192971,85.4,85.354,10.5514]
[1770451122088,49.96876024,85.4,85.351,52.01187099]
[1770451122288,54.9192971,85.4,85.36,4.95053686]
[1770451122889,2.0385449,85.435,85.3,62.0]
[1770451122890,50.83201815,85.389,85.35,4.95053686]
[1770451123092,50.83201815,85.369,85.33,4.95053686]
[1770451123887,50.83201815,85.369,85.321,10.5554]
[1770451124084,50.83201815,85.369,85.33,4.95053686]
[1770451124284,50.83201815,85.369,85.34,4.95053686]
[1770451124486,50.83201815,85.369,85.33,4.95053686]
[1770451124986,50.83201815,85.369,85.32,4.95053686]
[1770451125692,50.83201815,85.369,85.33,4.95053686]
[1770451126690,50.83201815,85.369,85.34,4.95053686]
[1770451127091,50.83201815,85.409,85.36,4.95053686]
[1770451127392,4.95053686,85.41,85.345,52.01187099]
[1770451127393,50.83201815,85.399,85.35,4.95053686]
[1770451128186,50.83201815,85.399,85.332,52.01187099]
[1770451128386,50.83201815,85.399,85.35,4.95053686]
[1770451128592,10.5444,85.412,85.332,52.01187099]
[1770451128593,50.83201815,85.389,85.34,4.95053686]
[1770451128786,50.83201815,85.389,85.341,10.553]
[1770451128983,50.83201815,85.389,85.34,4.95053686]
[1770451129186,50.83201815,85.389,85.35,4.95053686]
[1770451131491,50.83201815,85.389,85.343,10.5528]
[1770451131891,50.83201815,85.389,85.35,4.95053686]
[1770451132797,50.83201815,85.389,85.34,4.95053686]
[1770451132985,2.0385449,85.435,85.32,4.95053686]
[1770451132986,4.95053686,85.37,85.32,4.95053686]
[1770451133196,50.83201815,85.369,85.32,4.95053686]
[1770451133584,50.83201815,85.369,85.33,4.95053686]
[1770451133797,50.83201815,85.369,85.32,4.95053686]
[1770451134099,50.83201815,85.369,85.33,4.95053686]
[1770451135199,50.83201815,85.369,85.331,10.5542]
[1770451135390,50.83201815,85.369,85.34,4.95053686]
[1770451135793,4.95053686,85.39,85.34,4.95053686]
[1770451135794,50.83201815,85.383,85.34,4.95053686]
[1770451136192,50.83201815,85.383,85.331,52.01187099]
[1770451137691,50.83201815,85.383,85.333,10.554]
[1770451137893,50.83201815,85.383,85.34,4.95053686]
[1770451138591,50.83201815,85.383,85.35,4.95053686]
[1770451139101,50.83201815,85.383,85.331,52.01187099]
[1770451139396,50.83201815,85.383,85.35,4.95053686]
[1770451139992,50.83201815,85.383,85.34,4.95053686]
[1770451140396,50.83201815,85.411,85.37,4.95053686]
[1770451140595,50.83201815,85.411,85.38,4.95053686]
[1770451140799,50.83201815,85.411,85.37,4.95053686]
[1770451141193,50.83201815,85.409,85.35,4.95053686]
[1770451141393,50.83201815,85.409,85.346,52.01187099]
[1770451141394,50.83201815,85.389,85.34,4.95053686]
[1770451141594,50.83201815,85.389,85.342,10.5528]
[1770451142192,46.07887654,85.441,85.32,4.95053686]
[1770451142193,50.83201815,85.369,85.32,4.95053686]
[1770451142500,50.83201815,85.359,85.31,4.95053686]
[1770451143389,50.83201815,85.359,85.32,4.95053686]
[1770451143796,50.83201815,85.359,85.318,10.5559]
[1770451144096,50.83201815,85.359,85.32,4.95053686]
[1770451144502,50.83201815,85.359,85.32,15.50613686]
[1770451145802,50.83201815,85.359,85.33,4.95053686]
[1770451146199,50.83201815,85.359,85.31,15.50743686]
[1770451148601,50.83201815,85.359,85.32,4.95053686]
[1770451148796,50.83201815,85.359,85.33,4.95053686]
[1770451149703,50.83201815,85.359,85.295,48.12086058]
[1770451149902,48.19489841,85.349,85.3,4.95053686]
[1770451150400,48.19489841,85.349,85.278,48.12086058]
[1770451150401,48.19489841,85.349,85.31,4.95053686]
[1770451151602,48.19489841,85.349,85.302,10.5578]
[1770451151999,48.19489841,85.339,85.29,15.50973686]
[1770451152806,48.19489841,85.329,85.281,10.5604]
[1770451153005,48.19489841,85.329,85.29,4.95053686]
[1770451154609,48.19489841,85.329,85.281,10.5604]
[1770451156001,48.19489841,85.329,85.29,4.95053686]
[1770451156198,48.19489841,85.329,85.281,10.5605]
[1770451156505,48.19489841,85.329,85.29,4.95053686]
[1770451157107,48.19489841,85.329,85.28,4.95053686]
[1770451157406,48.19489841,85.329,85.28,4.94915184]
[1770451157801,48.19489841,85.329,85.28,15.50975184]
[1770451158002,48.19489841,85.329,85.223,164.3863]
[1770451158003,48.19489841,85.319,85.27,4.94915184]
[1770451158608,48.19489841,85.309,85.264,48.12086058]
[1770451158803,48.19489841,85.309,85.27,4.94915184]
[1770451159708,48.19489841,85.309,85.27,15.51085184]
[1770451160110,48.19489841,85.309,85.27,4.94915184]
[1770451160698,48.19489841,85.309,85.26,4.94915184]
[1770451162603,48.19489841,85.309,85.27,4.94915184]
[1770451163505,48.19489841,85.309,85.26,4.94915184]
[1770451164104,48.19489841,85.309,85.251,48.12086058]
[1770451164309,48.19489841,85.309,85.26,4.94915184]
[1770451164607,48.19489841,85.309,85.27,4.94915184]
[1770451166318,48.19489841,85.309,85.251,48.12086058]
[1770451166615,48.19489841,85.309,85.27,4.94915184]
[1770451169416,48.19489841,85.309,85.26,4.94915184]
[1770451170016,48.19489841,85.309,85.26,15.51215184]
[1770451170918,48.19489841,85.309,85.267,10.5621]
[1770451171715,48.19489841,85.309,85.27,4.94915184]
[1770451172621,48.19489841,85.339,85.3,4.94915184]
[1770451172814,48.19489841,85.339,85.282,48.12086058]
[1770451173013,48.19489841,85.339,85.3,4.94915184]
[1770451174523,48.19489841,85.339,85.31,4.94915184]
[1770451174727,48.19489841,85.351,85.32,4.94915184]
[1770451176021,48.19489841,85.351,85.306,48.12086058]
[1770451176022,48.19489841,85.351,85.33,4.94915184]
[1770451176424,48.19489841,85.351,85.293,50.52532721]
[1770451176621,48.19489841,85.351,85.31,4.94915184]
[1770451177012,48.19489841,85.351,85.32,4.94915184]
[1770451177924,48.19489841,85.351,85.31,4.94915184]
[1770451178718,48.19489841,85.351,85.305,50.52532721]
[1770451178921,48.19489841,85.351,85.203,49.7492668]
[1770451178922,46.65513612,85.339,85.29,4.94915184]
[1770451179816,46.65513612,85.329,85.282,10.5602]
[1770451180023,46.65513612,85.329,85.29,4.94915184]
[1770451180712,46.65513612,85.329,85.28,4.94915184]
[1770451182628,46.65513612,85.329,85.262,50.52532721]
[1770451182629,46.65513612,85.319,85.262,50.52532721]
[1770451183229,46.65513612,85.319,85.27,4.94915184]
[1770451185832,46.65513612,85.319,85.28,4.94915184]
[1770451186524,46.65513612,85.319,85.29,4.94915184]
[1770451186724,46.65513612,85.319,85.28,4.94915184]
[1770451188830,46.65513612,85.319,85.212,35.19]
[1770451188831,46.65513612,85.339,85.3,4.94915184]
[1770451189024,46.65513612,85.319,85.27,4.94915184]
[1770451189231,46.65513612,85.319,85.28,4.94915184]
[1770451192327,46.65513612,85.319,85.281,10.5604]
[1770451192529,46.65513612,85.319,85.28,4.94915184]
[1770451192725,164.0586,85.394,85.236,21.1321]
[1770451192726,46.65513612,85.349,85.3,4.94915184]
[1770451192932,46.65513612,85.343,85.3,4.94915184]
[1770451193333,46.65513612,85.339,85.29,4.94915184]
[1770451195043,46.65513612,85.339,85.289,50.52532721]
[1770451195337,46.65513612,85.339,85.29,4.94915184]
[1770451195533,46.65513612,85.339,85.276,50.52532721]
[1770451195734,46.65513612,85.329,85.29,4.94915184]
[1770451196833,46.65513612,85.329,85.28,55.47447905]
[1770451197038,46.65513612,85.329,85.29,4.94915184]
[1770451197440,46.65513612,85.329,85.28,55.47447905]
[1770451199734,46.65513612,85.319,85.236,50.52532721]
[1770451200032,46.65513612,85.299,85.26,4.94915184]
[1770451200233,46.65513612,85.299,85.247,50.52532721]
[1770451203335,46.65513612,85.299,85.233,50.52532721]
[1770451203935,46.65513612,85.299,85.196,50.52532721]
[1770451204337,46.65513612,85.299,85.21,50.52532721]
[1770451205044,46.65513612,85.295,85.21,50.52532721]
[1770451205440,46.65513612,85.292,85.21,50.52532721]
[1770451206041,46.99875189,85.274,85.21,50.52532721]
[1770451206737,46.99875189,85.269,85.197,51.37269279]
[1770451207142,46.99875189,85.256,85.197,51.37269279]
[1770451207746,46.99875189,85.254,85.197,51.37269279]
[1770451208335,46.99875189,85.245,85.197,51.37269279]
[1770451208539,46.99875189,85.245,85.136,51.37269279]
[1770451208744,46.99875189,85.236,85.135,52.89450581]
[1770451209141,46.99875189,85.236,85.148,10.5769]
[1770451209340,46.99875189,85.253,85.149,51.37269279]
[1770451209944,49.37804847,85.27,85.149,51.37269279]
[1770451210146,10.94983533,85.264,85.149,51.37269279]
[1770451210445,69.4920675,85.263,85.149,51.37269279]
[1770451210650,60.3278838,85.261,85.149,51.37269279]
[1770451210841,58.54223217,85.26,85.149,51.37269279]
[1770451211042,9.1641837,85.259,85.149,51.37269279]
[1770451211243,9.1641837,85.258,85.149,51.37269279]
[1770451211542,9.1641837,85.257,85.149,51.37269279]
[1770451211738,9.1641837,85.256,85.175,47.33803031]
[1770451211944,9.1641837,85.255,85.175,47.33803031]
[1770451212243,58.54223217,85.254,85.177,47.33803031]
[1770451212449,9.1641837,85.253,85.177,47.33803031]
[1770451212744,49.37804847,85.25,85.177,47.33803031]
[1770451213048,49.37804847,85.226,85.136,47.33803031]
[1770451213248,60.3278838,85.222,85.136,47.33803031]
[1770451213550,164.2935,85.272,85.135,1.52181302]
[1770451213551,9.1641837,85.221,85.154,47.33803031]
[1770451213741,49.37804847,85.237,85.154,47.33803031]
[1770451213942,9.10785565,85.236,85.154,47.33803031]
[1770451214144,9.10785565,85.235,85.156,47.33803031]
[1770451214348,9.10785565,85.234,85.156,47.33803031]
[1770451214549,9.10083277,85.244,85.156,47.33803031]
[1770451214746,9.10083277,85.243,85.171,47.33803031]
[1770451214947,9.10083277,85.242,85.171,47.33803031]
[1770451215247,58.47888124,85.241,85.171,47.33803031]
[1770451215551,58.47888124,85.24,85.171,47.33803031]
[1770451215746,9.10083277,85.239,85.171,47.33803031]
[1770451215946,9.10083277,85.238,85.171,47.33803031]
[1770451216148,9.10083277,85.237,85.171,47.33803031]
[1770451216348,49.37804847,85.24,85.171,47.33803031]
[1770451216349,9.10083277,85.236,85.171,47.33803031]
[1770451216548,9.10083277,85.235,85.171,47.33803031]
[1770451216849,9.10083277,85.234,85.171,47.33803031]
[1770451217152,58.47888124,85.233,85.171,47.33803031]
[1770451217355,9.10083277,85.232,85.171,47.33803031]
[1770451217552,49.37804847,85.233,85.171,47.33803031]
[1770451217753,9.10083277,85.232,85.171,47.33803031]
[1770451217954,49.37804847,85.233,85.171,47.33803031]
[1770451218455,9.09037476,85.232,85.171,47.33803031]
[1770451218655,49.37804847,85.233,85.171,47.33803031]
[1770451218844,9.08951685,85.232,85.171,47.33803031]
[1770451219049,9.08951685,85.231,85.171,47.33803031]
[1770451219258,9.08951685,85.23,85.171,47.33803031]
[1770451219456,49.37804847,85.233,85.171,47.33803031]
[1770451219757,9.11491392,85.232,85.171,47.33803031]
[1770451219958,9.11491392,85.231,85.171,47.33803031]
[1770451220259,9.11491392,85.231,85.135,1.52181302]
[1770451220260,49.37804847,85.228,85.157,47.33803031]
[1770451220457,9.11489321,85.23,85.157,47.33803031]
[1770451220458,49.37804847,85.226,85.157,47.33803031]
[1770451220658,49.37804847,85.224,85.157,47.33803031]
[1770451220860,49.37804847,85.222,85.157,47.33803031]
[1770451221158,49.37804847,85.22,85.157,47.33803031]
[1770451221358,49.37804847,85.218,85.157,47.33803031]
[1770451221560,10.5698,85.206,85.157,47.33803031]
[1770451221755,9.11489321,85.205,85.157,47.33803031]
[1770451221958,9.11489321,85.204,85.157,47.33803031]
[1770451222155,9.11489321,85.203,85.157,47.33803031]
[1770451222362,9.11489321,85.202,85.157,47.33803031]
[1770451222658,9.11489321,85.202,85.135,1.52181302]
[1770451222659,9.11489321,85.201,85.135,48.85984333]
[1770451222859,10.5733,85.178,85.135,48.85984333]
[1770451223660,10.5744,85.169,85.135,1.52181302]
[1770451223865,9.11489321,85.195,85.135,1.52181302]
[1770451224065,9.11489321,85.194,85.135,1.52181302]
[1770451224269,9.11489321,85.193,85.135,1.52181302]
[1770451224566,10.5736,85.175,85.135,1.302e-05]
[1770451224762,9.11489321,85.174,85.135,1.302e-05]
[1770451224968,10.94983533,85.169,85.135,1.302e-05]
[1770451225263,10.5781,85.139,85.135,1.302e-05]
[1770451225663,9.11489321,85.166,85.135,1.302e-05]
[1770451225966,9.11489321,85.165,85.135,1.302e-05]
[1770451226271,9.11489321,85.164,85.135,1.302e-05]
[1770451226467,9.08638382,85.163,85.135,1.302e-05]
[1770451226670,49.37804847,85.175,85.135,1.302e-05]
[1770451226969,10.5751,85.163,85.135,1.302e-05]
[1770451227666,9.08638382,85.193,85.136,47.33803031]
[1770451227970,49.37804847,85.193,85.136,47.33803031]
[1770451228172,10.5736,85.176,85.136,47.33803031]
[1770451228363,59.95164847,85.176,85.136,47.33803031]
[1770451228569,49.37804847,85.203,85.136,47.33803031]
[1770451228770,10.5709,85.197,85.136,47.33803031]
[1770451229265,10.572,85.188,85.136,47.33803031]
[1770451229866,10.5731,85.179,85.136,47.33803031]
[1770451230166,49.37804847,85.188,85.136,47.33803031]
[1770451230365,49.37804847,85.188,85.135,1.302e-05]
[1770451230674,49.37804847,85.179,85.135,1.302e-05]
[1770451231167,10.5749,85.165,85.135,1.302e-05]
[1770451231470,49.37804847,85.179,85.135,47.33804333]
[1770451231866,10.5719,85.19,85.135,47.33804333]
[1770451232060,49.37804847,85.204,85.135,47.33804333]
[1770451232259,10.574,85.173,85.135,47.33804333]
[1770451233274,10.574,85.173,85.057,35.19]
[1770451233275,10.5751,85.163,85.101,10.5827]
[1770451233667,49.37804847,85.186,85.057,35.19]
[1770451233872,10.5778,85.142,85.09,10.5841]
[1770451234064,10.5778,85.142,85.051,35.19]
[1770451234567,10.5789,85.133,85.051,35.19]
[1770451234767,10.5789,85.133,85.023,35.19]
[1770451234975,49.37804847,85.154,85.036,35.19]
[1770451235176,49.37804847,85.175,85.045,35.19]
[1770451235379,10.5746,85.167,85.113,46.85288067]
[1770451235768,49.37804847,85.175,85.113,46.85288067]
[1770451236572,10.5762,85.155,85.113,46.85288067]
[1770451236772,47.24120072,85.196,85.113,46.85288067]
[1770451237374,10.5748,85.166,85.116,46.40818606]
[1770451237875,10.5736,85.175,85.118,46.39968034]
[1770451238679,10.5736,85.175,85.071,35.19]
[1770451238680,10.5736,85.175,85.121,46.30623873]
[1770451239179,10.5747,85.167,85.121,46.30623873]
[1770451239779,10.5735,85.176,85.123,46.30276903]
[1770451240079,9.06418462,85.194,85.123,46.30276903]
[1770451240280,9.06418462,85.194,85.07,62.0]
[1770451240281,10.571,85.197,85.137,46.30276903]
[1770451240479,47.24120072,85.211,85.137,46.30276903]
[1770451240679,56.30538534,85.228,85.137,46.30276903]
[1770451240878,9.06418462,85.227,85.137,46.30276903]
[1770451241179,9.06418462,85.226,85.137,46.30276903]
[1770451241473,9.06418462,85.226,85.07,62.0]
[1770451241474,9.06418462,85.234,85.16,35.19]
[1770451241679,9.06418462,85.245,85.162,35.19]
[1770451241876,10.568,85.221,85.163,46.69617944]
[1770451242983,10.5691,85.212,85.163,46.69617944]
[1770451243277,10.5691,85.212,85.08,47.18226204]
[1770451243278,47.24120072,85.21,85.08,47.18226204]
[1770451243483,47.24120072,85.208,85.08,47.18226204]
[1770451243681,56.30538534,85.207,85.08,47.18226204]
[1770451243881,9.06418462,85.206,85.118,47.18226204]
[1770451244081,9.06418462,85.205,85.118,47.18226204]
[1770451244279,47.24120072,85.223,85.118,47.18226204]
[1770451244478,10.79867666,85.229,85.144,47.18226204]
[1770451244787,10.79867666,85.23,85.144,47.18226204]
[1770451244975,10.79867666,85.231,85.144,47.18226204]
[1770451245278,10.5673,85.226,85.158,38.27645003]
[1770451245580,10.79867666,85.215,85.158,38.27645003]
[1770451245777,10.79867666,85.214,85.158,38.27645003]
[1770451245978,47.24120072,85.218,85.158,38.27645003]
[1770451246180,10.5709,85.198,85.158,38.27645003]
[1770451246582,10.5709,85.198,85.147,38.27317993]
[1770451246972,47.24120072,85.196,85.147,38.27317993]
[1770451247174,47.24120072,85.196,85.073,164.36]
[1770451247175,58.03987738,85.185,85.073,164.36]
[1770451247374,28.7964711,85.229,85.073,164.36]
[1770451247375,47.24120072,85.179,85.074,35.19]
[1770451247785,164.3601,85.237,85.073,164.36]
[1770451247786,10.79867666,85.189,85.08,35.19]
[1770451247988,10.79867666,85.193,85.08,35.19]
[1770451248286,10.79867666,85.191,85.08,35.19]
[1770451248478,10.79867666,85.194,85.08,35.19]
[1770451248679,10.572,85.188,85.122,10.5802]
[1770451249282,10.572,85.188,85.123,18.58602542]
[1770451249982,10.5733,85.178,85.123,18.58602542]
[1770451250289,47.24120072,85.183,85.123,18.58602542]
[1770451250489,10.79867666,85.179,85.123,18.58602542]
[1770451250688,10.79867666,85.184,85.125,18.56092041]
[1770451251289,10.79867666,85.187,85.127,18.95007358]
[1770451251477,10.5717,85.191,85.127,18.95007358]
[1770451251987,10.79867666,85.189,85.127,18.95007358]
[1770451252188,21.37037666,85.191,85.127,18.95007358]
[1770451252687,10.5728,85.182,85.13,19.12949998]
[1770451252877,10.79867666,85.182,85.13,19.12949998]
[1770451253075,10.79867666,85.187,85.13,19.12949998]
[1770451253281,10.79867666,85.186,85.13,19.12949998]
[1770451253574,10.79867666,85.186,85.132,19.12949998]
[1770451253981,10.79867666,85.181,85.132,19.12949998]
[1770451254582,10.79867666,85.182,85.132,19.12949998]
[1770451254782,10.5723,85.186,85.132,19.12949998]
[1770451255086,10.79867666,85.203,85.132,19.12949998]
[1770451255278,47.24120072,85.194,85.132,19.12949998]
[1770451255583,10.79867666,85.19,85.132,19.12949998]
[1770451256182,10.79867666,85.188,85.132,19.12949998]
[1770451256382,9.0596495,85.187,85.132,19.12949998]
[1770451256583,9.0596495,85.186,85.132,19.12949998]
[1770451256882,10.5734,85.178,85.132,19.12949998]
[1770451257084,9.0596495,85.177,85.132,19.12949998]
[1770451257285,9.0596495,85.176,85.132,19.12949998]
[1770451257486,19.6332495,85.175,85.132,19.12949998]
[1770451257677,9.0596495,85.174,85.132,19.12949998]
[1770451257890,9.0596495,85.173,85.132,19.12949998]
[1770451258086,9.0596495,85.172,85.132,19.12949998]
[1770451258280,9.0596495,85.171,85.132,19.12949998]
[1770451258586,9.0596495,85.17,85.132,19.12949998]
[1770451258778,9.0596495,85.169,85.132,19.12949998]
[1770451258978,9.0596495,85.168,85.132,19.12949998]
[1770451259188,9.0596495,85.167,85.132,19.12949998]
[1770451259387,9.0596495,85.166,85.132,19.12949998]
[1770451259585,9.0596495,85.165,85.132,19.12949998]
[1770451259888,10.79867666,85.175,85.132,19.12949998]
[1770451259889,9.0596495,85.164,85.132,19.12949998]
[1770451260186,9.0596495,85.163,85.132,19.12949998]
[1770451260387,9.0596495,85.162,85.132,19.12949998]
[1770451260586,10.5723,85.186,85.132,19.12949998]
[1770451260587,10.79867666,85.18,85.132,19.12949998]
[1770451261587,10.5728,85.182,85.134,9.82275386]
[1770451261793,10.79867666,85.176,85.134,9.82275386]
[1770451261991,10.79867666,85.175,85.134,9.82275386]
[1770451262193,10.79867666,85.18,85.134,9.82275386]
[1770451262387,10.79867666,85.179,85.134,9.82275386]
[1770451262788,10.5733,85.178,85.134,9.82275386]
[1770451263092,10.79867666,85.171,85.119,9.82778559]
[1770451263291,10.79867666,85.169,85.119,9.82778559]
[1770451263791,58.03987738,85.174,85.119,9.82778559]
[1770451263981,10.79867666,85.172,85.119,9.82778559]
[1770451264181,10.79867666,85.171,85.119,9.82778559]
[1770451264386,10.79867666,85.171,85.131,9.8090425]
[1770451264585,10.79867666,85.177,85.131,9.8090425]
[1770451264782,10.79867666,85.175,85.131,9.8090425]
[1770451264987,10.79867666,85.177,85.132,10.5789]
[1770451265192,10.79867666,85.176,85.133,9.66377885]
[1770451265387,47.24120072,85.206,85.133,9.66377885]
[1770451266187,10.5706,85.2,85.152,10.5764]
[1770451266592,14.39823555,85.214,85.102,35.19]
[1770451266792,35.9947661,85.266,85.092,2.04356073]
[1770451266793,52.09599703,85.255,85.142,35.19]
[1770451267294,52.09599703,85.255,85.152,35.19]
[1770451267492,52.09599703,85.255,85.142,164.5423]
[1770451267795,10.5645,85.249,85.184,10.5725]
[1770451268385,52.09599703,85.255,85.147,164.5327]
[1770451268584,10.5626,85.264,85.154,35.19]
[1770451268896,52.09651717,85.272,85.096,164.6309]
[1770451268897,52.09651717,85.272,85.161,199.6953]
[1770451269484,52.09651717,85.272,85.2,14.74772997]
[1770451270496,52.09651717,85.272,85.217,10.5684]
[1770451270890,10.5607,85.28,85.217,10.5684]
[1770451271099,51.865715,85.288,85.228,10.567]
[1770451271700,51.865715,85.288,85.2,14.74772997]
[1770451272299,14.74772997,85.29,85.2,14.74772997]
[1770451272300,51.86540021,85.286,85.2,14.74772997]
[1770451272697,51.27978211,85.284,85.2,14.74772997]
[1770451272893,8.87093291,85.285,85.2,14.74772997]
[1770451272894,60.15071502,85.283,85.2,14.74772997]
[1770451273202,8.87093291,85.282,85.2,14.74772997]
[1770451273500,61.84068211,85.278,85.2,14.74772997]
[1770451273697,51.27978211,85.269,85.2,14.74772997]
[1770451273899,70.7125581,85.268,85.2,25.31812997]
[1770451274101,14.74772997,85.27,85.2,10.5704]
[1770451274102,60.1503581,85.267,85.2,10.5704]
[1770451274401,51.27942519,85.265,85.2,10.5704]
[1770451274597,10.5627,85.263,85.2,10.5704]
[1770451274794,51.32033715,85.261,85.2,10.5704]
[1770451274994,51.32033715,85.259,85.2,10.5704]
[1770451275194,8.86198608,85.258,85.2,10.5704]
[1770451275495,66.06806712,85.25,85.188,10.5719]
[1770451275701,8.86198608,85.249,85.188,10.5719]
[1770451275897,66.06806712,85.25,85.18,14.74772997]
[1770451276201,60.18058863,85.249,85.18,14.74772997]
[1770451276397,51.31999178,85.246,85.16,14.74772997]
[1770451276589,14.74772997,85.23,85.171,10.5741]
[1770451277095,51.68621228,85.226,85.16,14.74772997]
[1770451277402,51.68621228,85.209,85.14,14.74772997]
[1770451277694,62.25571228,85.209,85.102,35.19]
[1770451277896,51.68590428,85.207,85.12,14.74772997]
[1770451278198,51.68590428,85.207,85.14,14.74772997]
[1770451278702,51.68590428,85.207,85.153,10.5763]
[1770451278894,51.42693497,85.205,85.153,10.5763]
[1770451279294,14.74772997,85.19,85.102,35.19]
[1770451279496,51.42693497,85.189,85.11,14.77854899]
[1770451279796,51.42693497,85.189,85.128,10.5794]
[1770451281401,51.57277167,85.206,85.142,10.5777]
[1770451281698,51.57277167,85.204,85.142,10.5777]
[1770451281903,51.57246896,85.202,85.142,10.5777]
[1770451282804,51.57246896,85.199,85.11,14.77854899]
[1770451283009,51.53219774,85.189,85.11,14.77854899]
[1770451283204,62.10419774,85.189,85.127,10.5795]
[1770451283394,51.53219774,85.189,85.11,14.77854899]
[1770451283603,51.53219774,85.206,85.13,14.77854899]
[1770451283800,51.53219774,85.206,85.158,10.5757]
[1770451284296,28.7964711,85.276,85.1,14.77854899]
[1770451284297,51.53189895,85.229,85.15,14.77854899]
[1770451284602,51.53189895,85.229,85.17,14.77854899]
[1770451284908,51.53189895,85.229,85.126,21.1594]
[1770451285210,51.54712427,85.246,85.19,14.77854899]
[1770451285709,51.54712427,85.246,85.201,10.5704]
[1770451286504,51.54683344,85.262,85.21,10.5692]
[1770451287104,51.54683344,85.262,85.219,10.5681]
[1770451287708,51.54683344,85.262,85.208,10.5694]
[1770451288606,14.77854899,85.26,85.198,10.5707]
[1770451288912,60.55201235,85.259,85.16,14.77854899]
[1770451289101,51.88352386,85.239,85.16,14.77854899]
[1770451289304,51.88352386,85.237,85.16,14.77854899]
[1770451289502,14.77854899,85.25,85.14,14.77854899]
[1770451289503,51.88352386,85.219,85.14,14.77854899]
[1770451290008,51.88326978,85.217,85.151,10.5765]
[1770451290611,51.88326978,85.215,85.139,10.578]
[1770451290913,51.70487971,85.199,85.139,10.578]
[1770451291410,51.70487971,85.197,85.139,10.578]
[1770451291804,51.70461925,85.214,85.14,14.77854899]
[1770451292297,51.70461925,85.214,85.159,10.5755]
[1770451292499,51.70461925,85.214,85.14,14.77854899]
[1770451295412,51.70461925,85.214,85.176,10.5734]
[1770451295811,8.6759367,85.233,85.16,14.77854899]
[1770451296010,52.88984849,85.239,85.143,35.19]
[1770451296210,52.88984849,85.237,85.129,35.19]
[1770451296403,52.88984849,85.235,85.14,14.77854899]
[1770451296607,14.77854899,85.24,85.14,14.77854899]
[1770451296608,52.88984849,85.233,85.14,14.77854899]
[1770451296809,52.55389754,85.224,85.167,10.5746]
[1770451297615,52.55389754,85.224,85.176,10.5735]
[1770451297916,52.55371093,85.222,85.14,14.77854899]
[1770451298117,52.55371093,85.22,85.14,14.77854899]
[1770451298315,52.55371093,85.218,85.163,10.575]
[1770451298612,52.55371093,85.216,85.163,10.575]
[1770451298804,60.72319182,85.215,85.163,10.575]
[1770451299005,8.68020117,85.214,85.163,10.575]
[1770451299205,8.68020117,85.213,85.163,10.575]
[1770451299512,14.77854899,85.2,85.13,14.77854899]
[1770451299708,52.04277687,85.199,85.13,14.77854899]
[1770451300717,52.21556601,85.215,85.13,14.77854899]
[1770451301419,52.21556601,85.215,85.166,10.5747]
[1770451302929,52.29508608,85.213,85.155,10.5761]
[1770451303118,52.29508608,85.211,85.155,10.5761]
[1770451303428,52.29508608,85.209,85.155,10.5761]
[1770451303622,52.29508608,85.207,85.155,10.5761]